fUSD/lending_fUSD_20250716
["ID","MTS","AMOUNT","RATE_DAILY","PERIOD"]
[372518120,1752669053101,-151.0,0.00021917,2]
[372518122,1752669053111,-206.571443,0.00021917,2]
[372518124,1752669053120,-460.0,0.00021917,2]
[372518126,1752669053130,-460.0,0.00021917,2]
[372518128,1752669053140,-533.03,0.00021917,2]
[372518130,1752669053150,-460.0,0.00021917,2]
[372518132,1752669053160,-460.0,0.00021917,2]
[372518134,1752669053169,-464.96,0.00021917,2]
[372518136,1752669053179,-708.05,0.00021917,2]
[372518138,1752669053190,-460.0,0.00021917,2]
[372518140,1752669053204,-460.0,0.00021917,2]
[372518142,1752669053214,-460.0,0.00021917,2]
[372518144,1752669053224,-460.0,0.00021917,2]
[372518146,1752669053235,-1406.23,0.00021917,2]
[372518148,1752669053244,-460.0,0.00021917,2]
[372518150,1752669053254,-460.0,0.00021917,2]
[372518152,1752669053264,-460.0,0.00021917,2]
[372518154,1752669053274,-460.0,0.00021917,2]
[372518156,1752669053286,-460.0,0.00021917,2]
[372518159,1752669053296,-1117.02,0.00021917,2]
[372518160,1752669053306,-460.0,0.00021917,2]
[372518163,1752669053315,-460.0,0.00021917,2]
[372518164,1752669053326,-460.0,0.00021917,2]
[372518167,1752669053336,-460.0,0.00021917,2]
[372518168,1752669053346,-460.0,0.00021917,2]
[372518171,1752669053357,-542.35,0.00021917,2]
[372518173,1752669053368,-460.0,0.00021917,2]
[372518175,1752669053378,-2152.87,0.00021917,2]
[372518176,1752669053388,-460.0,0.00021917,2]
[372518178,1752669053398,-460.0,0.00021917,2]
[372518180,1752669053408,-460.0,0.00021917,2]
[372518182,1752669053418,-460.0,0.00021917,2]
[372518184,1752669053427,-460.0,0.00021917,2]
[372518186,1752669053437,-460.0,0.00021917,2]
[372518188,1752669053448,-460.0,0.00021917,2]
[372518190,1752669053458,-460.0,0.00021917,2]
[372518192,1752669053468,-1598.37,0.00021917,2]
[372518195,1752669053478,-460.0,0.00021917,2]
[372518197,1752669053488,-460.0,0.00021917,2]
[372518199,1752669053497,-460.0,0.00021917,2]
[372518200,1752669053507,-460.0,0.00021917,2]
[372518202,1752669053517,-969.92,0.00021917,2]
[372518204,1752669053526,-790.01,0.00021917,2]
[372518206,1752669053536,-460.0,0.00021917,2]
[372518208,1752669053545,-500.0,0.00021917,2]
[372518211,1752669053555,-505.59526122,0.00021917,2]
[372518213,1752669053566,-460.0,0.00021917,2]
[372518215,1752669053576,-460.0,0.00021917,2]
[372518217,1752669053585,-460.0,0.00021917,2]
[372518219,1752669053596,-460.0,0.00021917,2]
[372518221,1752669053606,-460.0,0.00021917,2]
[372518223,1752669053616,-460.0,0.00021917,2]
[372518224,1752669053626,-460.0,0.00021917,2]
[372518225,1752669053636,-460.0,0.00021917,2]
[372518226,1752669053646,-460.0,0.00021917,2]
[372518227,1752669053656,-460.0,0.00021917,2]
[372518228,1752669053666,-460.0,0.00021917,2]
[372518229,1752669053676,-151.0,0.00021917,2]
[372518230,1752669053686,-3084.04,0.00021917,2]
[372518231,1752669053696,-152.772097,0.00021917,2]
[372518233,1752669053705,-460.0,0.00021917,2]
[372518235,1752669053715,-151.0,0.00021917,2]
[372518237,1752669053725,-151.0,0.00021917,2]
[372518239,1752669053735,-460.0,0.00021917,2]
[372518241,1752669053745,-151.0,0.00021917,2]
[372518243,1752669053754,-151.0,0.00021917,2]
[372518245,1752669053764,-1018.55,0.00021917,2]
[372518247,1752669053773,-460.0,0.00021917,2]
[372518249,1752669053783,-151.0,0.00021917,2]
[372518251,1752669053793,-460.0,0.00021917,2]
[372518253,1752669053803,-151.0,0.00021917,2]
[372518255,1752669053813,-151.0,0.00021917,2]
[372518257,1752669053823,-151.0,0.00021917,2]
[372518259,1752669053833,-460.0,0.00021917,2]
[372518261,1752669053843,-151.0,0.00021917,2]
[372518263,1752669053853,-460.0,0.00021917,2]
[372518265,1752669053862,-606.56,0.00021917,2]
[372518267,1752669053872,-151.0,0.00021917,2]
[372518269,1752669053882,-151.0,0.00021917,2]
[372518271,1752669053892,-460.0,0.00021917,2]
[372518274,1752669053902,-151.0,0.00021917,2]
[372518276,1752669053911,-151.0,0.00021917,2]
[372518278,1752669053921,-151.0,0.00021917,2]
[372518280,1752669053931,-256.57556,0.00021917,2]
[372518281,1752669053941,-460.0,0.00021917,2]
[372518284,1752669053953,-460.0,0.00021917,2]
[372518286,1752669053962,-460.0,0.00021917,2]
[372518288,1752669053972,-1286.86,0.00021917,2]
[372518290,1752669053981,-460.0,0.00021917,2]
[372518292,1752669053991,-552.3,0.00021917,2]
[372518294,1752669054001,-461.37196757,0.00021917,2]
[372518296,1752669054011,-402.37133268,0.00021917,2]
[372518298,1752669054020,-460.0,0.00021917,2]
[372518300,1752669054030,-460.0,0.00021917,2]
[372518302,1752669054040,-1001.88,0.00021917,2]
[372518304,1752669054050,-1306.89,0.00021917,2]
[372518306,1752669054058,-460.0,0.00021917,2]
[372518308,1752669054068,-460.0,0.00021917,2]
[372518310,1752669054077,-460.0,0.00021917,2]
[372518312,1752669054087,-460.0,0.00021917,2]
[372518314,1752669054096,-460.0,0.00021917,2]
[372518316,1752669054106,-2815.65,0.00021917,2]
[372518318,1752669054117,-460.98407075,0.00021917,2]
[372518320,1752669054127,-558.0,0.00021917,2]
[372518322,1752669054136,-604.31,0.00021917,2]
[372518324,1752669054146,-529.44,0.00021917,2]
[372518326,1752669054156,-460.0,0.00021917,2]
[372518328,1752669054166,-463.10053598,0.00021917,2]
[372518330,1752669054175,-414.9466187,0.00021917,2]
[372518332,1752669054185,-151.0,0.00021917,2]
[372518334,1752669054198,-171.34436,0.00021917,2]
[372518336,1752669054208,-460.0,0.00021917,2]
[372518338,1752669054219,-610.04,0.00021917,2]
[372518340,1752669054229,-460.0,0.00021917,2]
[372518342,1752669054242,-151.0,0.00021917,2]
[372518344,1752669054252,-460.0,0.00021917,2]
[372518346,1752669054262,-151.0,0.00021917,2]
[372518348,1752669054272,-276.47802,0.00021917,2]
[372518351,1752669054285,-151.0,0.00021917,2]
[372518353,1752669054295,-151.0,0.00021917,2]
[372518355,1752669054305,-460.0,0.00021917,2]
[372518357,1752669054316,-151.0,0.00021917,2]
[372518359,1752669054325,-460.0,0.00021917,2]
[372518361,1752669054335,-151.0,0.00021917,2]
[372518363,1752669054344,-151.0,0.00021917,2]
[372518365,1752669054354,-460.0,0.00021917,2]
[372518367,1752669054364,-151.0,0.00021917,2]
[372518369,1752669054374,-460.0,0.00021917,2]
[372518371,1752669054384,-460.0,0.00021917,2]
[372518373,1752669054394,-460.0,0.00021917,2]
[372518375,1752669054406,-460.0,0.00021917,2]
[372518377,1752669054416,-460.0,0.00021917,2]
[372518379,1752669054425,-151.40537,0.00021917,2]
[372518381,1752669054435,-574.67,0.00021917,2]
[372518383,1752669054447,-460.0,0.00021917,2]
[372518385,1752669054457,-461.71328183,0.00021917,2]
[372518387,1752669054467,-1466.12,0.00021917,2]
[372518389,1752669054477,-460.0,0.00021917,2]
[372518391,1752669054487,-461.96592007,0.00021917,2]
[372518393,1752669054497,-460.0,0.00021917,2]
[372518395,1752669054507,-599.62,0.00021917,2]
[372518397,1752669054516,-460.0,0.00021917,2]
[372518399,1752669054526,-1457.82,0.00021917,2]
[372518401,1752669054536,-460.0,0.00021917,2]
[372518403,1752669054545,-460.0,0.00021917,2]
[372518405,1752669054554,-461.15765315,0.00021917,2]
[372518407,1752669054564,-151.0,0.00021917,2]
[372518409,1752669054573,-151.0,0.00021917,2]
[372518411,1752669054583,-151.0,0.00021917,2]
[372518413,1752669054592,-151.0,0.00021917,2]
[372518415,1752669054601,-460.0,0.00021917,2]
[372518417,1752669054611,-526.3220976,0.00021917,2]
[372518419,1752669054620,-460.0,0.00021917,2]
[372518421,1752669054630,-460.0,0.00021917,2]
[372518423,1752669054639,-460.0,0.00021917,2]
[372518425,1752669054649,-460.0,0.00021917,2]
[372518427,1752669054659,-460.0,0.00021917,2]
[372518429,1752669054669,-498.95,0.00021917,2]
[372518430,1752669054679,-460.0,0.00021917,2]
[372518432,1752669054690,-460.0,0.00021917,2]
[372518434,1752669054706,-460.0,0.00021917,2]
[372518436,1752669054719,-461.4313427,0.00021917,2]
[372518438,1752669054729,-4349.71,0.00021917,2]
[372518440,1752669054740,-724.0,0.00021917,2]
[372518442,1752669054751,-461.20398739,0.00021917,2]
[372518444,1752669054763,-460.0,0.00021917,2]
[372518446,1752669054773,-512.66,0.00021917,2]
[372518448,1752669054785,-460.0,0.00021917,2]
[372518450,1752669054799,-460.0,0.00021917,2]
[372518452,1752669054815,-373.79350706,0.00021917,2]
[372518454,1752669054827,-460.0,0.00021917,2]
[372518455,1752669054838,-460.0,0.00021917,2]
[372518456,1752669054848,-460.0,0.00021917,2]
[372518457,1752669054859,-460.88981099,0.00021917,2]
[372518458,1752669054869,-460.0,0.00021917,2]
[372518459,1752669054880,-460.0,0.00021917,2]
[372518460,1752669054891,-547.74,0.00021917,2]
[372518461,1752669054902,-460.0,0.00021917,2]
[372518462,1752669054912,-460.0,0.00021917,2]
[372518463,1752669054922,-460.0,0.00021917,2]
[372518464,1752669054932,-460.0,0.00021917,2]
[372518465,1752669054942,-460.0,0.00021917,2]
[372518466,1752669054960,-460.0,0.00021917,2]
[372518467,1752669054970,-974.71,0.00021917,2]
[372518468,1752669054979,-460.0,0.00021917,2]
[372518469,1752669054990,-460.0,0.00021917,2]
[372518470,1752669055000,-151.0,0.00021917,2]
[372518471,1752669055010,-262.949611,0.00021917,2]
[372518472,1752669055020,-150.0,0.00021917,2]
[372518473,1752669055030,-681.19,0.00021917,2]
[372518474,1752669055040,-460.0,0.00021917,2]
[372518475,1752669055050,-460.0,0.00021917,2]
[372518476,1752669055061,-500.0,0.00021917,2]
[372518477,1752669055071,-500.0,0.00021917,2]
[372518478,1752669055081,-526.09,0.00021917,2]
[372518479,1752669055091,-500.0,0.00021917,2]
[372518480,1752669055103,-500.0,0.00021917,2]
[372518481,1752669055115,-500.0,0.00021917,2]
[372518482,1752669055126,-500.0,0.00021917,2]
[372518483,1752669055136,-500.0,0.00021917,2]
[372518484,1752669055146,-460.0,0.00021917,2]
[372518485,1752669055157,-678.35,0.00021917,2]
[372518486,1752669055166,-1029.29,0.00021917,2]
[372518487,1752669055176,-460.0,0.00021917,2]
[372518488,1752669055186,-1021.63,0.00021917,2]
[372518489,1752669055203,-500.0,0.00021917,2]
[372518490,1752669055213,-500.0,0.00021917,2]
[372518491,1752669055223,-460.0,0.00021917,2]
[372518492,1752669055235,-460.0,0.00021917,2]
[372518493,1752669055245,-1562.72,0.00021917,2]
[372518494,1752669055255,-460.0,0.00021917,2]
[372518495,1752669055265,-460.0,0.00021917,2]
[372518496,1752669055276,-1020.33,0.00021917,2]
[372518497,1752669055384,-525.68,0.00021917,2]
[372518498,1752669055395,-460.0,0.00021917,2]
[372518499,1752669055405,-460.0,0.00021917,2]
[372518500,1752669055414,-460.0,0.00021917,2]
[372518501,1752669055424,-974.9,0.00021917,2]
[372518502,1752669055433,-460.0,0.00021917,2]
[372518503,1752669055443,-580.0,0.00021917,2]
[372518505,1752669055466,-1457.11,0.00021917,2]
[372518507,1752669055478,-460.0,0.00021917,2]
[372518509,1752669055488,-460.0,0.00021917,2]
[372518511,1752669055498,-721.39,0.00021917,2]
[372518513,1752669055508,-460.0,0.00021917,2]
[372518515,1752669055523,-482.25,0.00021917,2]
[372518517,1752669055539,-460.0,0.00021917,2]
[372518519,1752669055549,-553.74843113,0.00021917,2]
[372518520,1752669055558,-460.0,0.00021917,2]
[372518521,1752669055568,-460.0,0.00021917,2]
[372518522,1752669055578,-460.0,0.00021917,2]
[372518523,1752669055588,-500.0,0.00021917,2]
[372518524,1752669055599,-500.0,0.00021917,2]
[372518525,1752669055609,-500.0,0.00021917,2]
[372518526,1752669055619,-500.0,0.00021917,2]
[372518527,1752669055629,-488.24,0.00021917,2]
[372518528,1752669055638,-500.0,0.00021917,2]
[372518529,1752669055648,-500.0,0.00021917,2]
[372518530,1752669055657,-500.0,0.00021917,2]
[372518531,1752669055667,-460.0,0.00021917,2]
[372518532,1752669055677,-460.0,0.00021917,2]
[372518533,1752669055686,-460.0,0.00021917,2]
[372518534,1752669055695,-887.99,0.00021917,2]
[372518535,1752669055708,-471.22,0.00021917,2]
[372518536,1752669055718,-460.0,0.00021917,2]
[372518537,1752669055727,-460.0,0.00021917,2]
[372518538,1752669055737,-746.4,0.00021917,2]
[372518539,1752669055746,-460.0,0.00021917,2]
[372518540,1752669055756,-950.17,0.00021917,2]
[372518541,1752669055765,-460.0,0.00021917,2]
[372518542,1752669055775,-464.07738992,0.00021917,2]
[372518543,1752669055785,-460.0,0.00021917,2]
[372518544,1752669055795,-476.93,0.00021917,2]
[372518545,1752669055804,-460.0,0.00021917,2]
[372518546,1752669055814,-661.52,0.00021917,2]
[372518547,1752669055823,-976.89,0.00021917,2]
[372518548,1752669055833,-460.0,0.00021917,2]
[372518549,1752669055843,-460.0,0.00021917,2]
[372518550,1752669055853,-460.0,0.00021917,2]
[372518551,1752669055863,-910.12,0.00021917,2]
[372518552,1752669055873,-500.0,0.00021917,2]
[372518553,1752669055882,-765.43,0.00021917,2]
[372518554,1752669055891,-460.0,0.00021917,2]
[372518555,1752669055901,-460.0,0.00021917,2]
[372518556,1752669055911,-462.35536448,0.00021917,2]
[372518557,1752669055921,-460.0,0.00021917,2]
[372518558,1752669055931,-460.0,0.00021917,2]
[372518559,1752669055940,-478.25,0.00021917,2]
[372518560,1752669055953,-338.13819307,0.00021917,2]
[372518561,1752669055963,-460.0,0.00021917,2]
[372518562,1752669055974,-460.0,0.00021917,2]
[372518563,1752669055984,-1055.73,0.00021917,2]
[372518564,1752669055994,-538.67018256,0.00021917,2]
[372518565,1752669056003,-559.57,0.00021917,2]
[372518566,1752669056013,-460.0,0.00021917,2]
[372518567,1752669056022,-2568.31,0.00021917,2]
[372518568,1752669056032,-463.42096573,0.00021917,2]
[372518569,1752669056041,-460.0,0.00021917,2]
[372518570,1752669056051,-589.89,0.00021917,2]
[372518571,1752669056061,-462.27567643,0.00021917,2]
[372518572,1752669056070,-460.0,0.00021917,2]
[372518573,1752669056082,-460.0,0.00021917,2]
[372518574,1752669056092,-460.0,0.00021917,2]
[372518575,1752669056101,-544.46,0.00021917,2]
[372518576,1752669056111,-460.0,0.00021917,2]
[372518577,1752669056120,-460.0,0.00021917,2]
[372518578,1752669056130,-460.0,0.00021917,2]
[372518579,1752669056139,-2312.45,0.00021917,2]
[372518580,1752669056149,-588.06,0.00021917,2]
[372518581,1752669056160,-460.0,0.00021917,2]
[372518582,1752669056169,-150.0,0.00021917,2]
[372518583,1752669056179,-935.74,0.00021917,2]
[372518584,1752669056189,-460.0,0.00021917,2]
[372518585,1752669056203,-460.0,0.00021917,2]
[372518586,1752669056213,-460.0,0.00021917,2]
[372518587,1752669056223,-683.33,0.00021917,2]
[372518588,1752669056232,-705.58,0.00021917,2]
[372518589,1752669056242,-657.65,0.00021917,2]
[372518590,1752669056252,-460.0,0.00021917,2]
[372518591,1752669056262,-460.0,0.00021917,2]
[372518592,1752669056271,-460.0,0.00021917,2]
[372518593,1752669056283,-465.10079346,0.00021917,2]
[372518594,1752669056293,-2003.0,0.00021917,2]
[372518595,1752669056303,-2434.49,0.00021917,2]
[372518596,1752669056314,-460.0,0.00021917,2]
[372518597,1752669056324,-460.0,0.00021917,2]
[372518598,1752669056335,-460.0,0.00021917,2]
[372518599,1752669056344,-460.0,0.00021917,2]
[372518600,1752669056354,-460.0,0.00021917,2]
[372518602,1752669056365,-460.0,0.00021917,2]
[372518604,1752669056374,-460.0,0.00021917,2]
[372518606,1752669056384,-460.0,0.00021917,2]
[372518608,1752669056394,-460.0,0.00021917,2]
[372518609,1752669056404,-460.0,0.00021917,2]
[372518611,1752669056414,-460.0,0.00021917,2]
[372518614,1752669056424,-735.8,0.00021917,2]
[372518616,1752669056434,-460.0,0.00021917,2]
[372518618,1752669056444,-500.0,0.00021917,2]
[372518620,1752669056459,-460.0,0.00021917,2]
[372518622,1752669056468,-500.0,0.00021917,2]
[372518624,1752669056478,-500.0,0.00021917,2]
[372518626,1752669056488,-500.0,0.00021917,2]
[372518628,1752669056497,-500.0,0.00021917,2]
[372518629,1752669056506,-500.0,0.00021917,2]
[372518631,1752669056516,-460.0,0.00021917,2]
[372518634,1752669056525,-500.0,0.00021917,2]
[372518635,1752669056535,-460.0,0.00021917,2]
[372518637,1752669056545,-461.52471845,0.00021917,2]
[372518639,1752669056554,-460.0,0.00021917,2]
[372518642,1752669056564,-1781.87,0.00021917,2]
[372518644,1752669056574,-460.0,0.00021917,2]
[372518646,1752669056583,-460.0,0.00021917,2]
[372518648,1752669056592,-460.0,0.00021917,2]
[372518650,1752669056601,-461.45,0.00021917,2]
[372518652,1752669056610,-500.0,0.00021917,2]
[372518654,1752669056620,-500.0,0.00021917,2]
[372518656,1752669056629,-500.0,0.00021917,2]
[372518658,1752669056638,-460.0,0.00021917,2]
[372518659,1752669056647,-500.0,0.00021917,2]
[372518661,1752669056657,-460.0,0.00021917,2]
[372518664,1752669056666,-460.0,0.00021917,2]
[372518665,1752669056676,-500.0,0.00021917,2]
[372518667,1752669056685,-500.0,0.00021917,2]
[372518670,1752669056695,-853.98,0.00021917,2]
[372518671,1752669056707,-778.28,0.00021917,2]
[372518674,1752669056716,-460.0,0.00021917,2]
[372518676,1752669056726,-460.0,0.00021917,2]
[372518677,1752669056736,-460.0,0.00021917,2]
[372518679,1752669056745,-11042.15,0.00021917,2]
[372518682,1752669056755,-462.18712367,0.00021917,2]
[372518683,1752669056764,-948.12,0.00021917,2]
[372518684,1752669056773,-157.681486,0.00021917,2]
[372518685,1752669056782,-460.0,0.00021917,2]
[372518686,1752669056791,-460.0,0.00021917,2]
[372518687,1752669056800,-465.83195954,0.00021917,2]
[372518688,1752669056809,-504.18863023,0.00021917,2]
[372518689,1752669056817,-460.0,0.00021917,2]
[372518690,1752669056826,-460.0,0.00021917,2]
[372518691,1752669056835,-460.0,0.00021917,2]
[372518693,1752669056844,-460.0,0.00021917,2]
[372518695,1752669056853,-460.0,0.00021917,2]
[372518697,1752669056863,-460.0,0.00021917,2]
[372518699,1752669056872,-460.0,0.00021917,2]
[372518701,1752669056881,-699.07,0.00021917,2]
[372518703,1752669056891,-460.0,0.00021917,2]
[372518705,1752669056900,-461.03122876,0.00021917,2]
[372518707,1752669056910,-2673.89,0.00021917,2]
[372518709,1752669056920,-730.66,0.00021917,2]
[372518711,1752669056930,-850.78,0.00021917,2]
[372518713,1752669056939,-508.69,0.00021917,2]
[372518715,1752669056949,-2461.48,0.00021917,2]
[372518717,1752669056961,-2134.92,0.00021917,2]
[372518719,1752669056970,-460.0,0.00021917,2]
[372518721,1752669056979,-460.0,0.00021917,2]
[372518723,1752669056988,-151.0,0.00021917,2]
[372518725,1752669056998,-1401.13,0.00021917,2]
[372518727,1752669057008,-500.0,0.00021917,2]
[372518729,1752669057017,-151.0,0.00021917,2]
[372518731,1752669057027,-500.0,0.00021917,2]
[372518734,1752669057036,-151.0,0.00021917,2]
[372518736,1752669057047,-151.0,0.00021917,2]
[372518738,1752669057056,-151.0,0.00021917,2]
[372518740,1752669057065,-707.86,0.00021917,2]
[372518742,1752669057075,-513.5,0.00021917,2]
[372518744,1752669057084,-151.0,0.00021917,2]
[372518746,1752669057093,-151.0,0.00021917,2]
[372518748,1752669057102,-221.084461,0.00021917,2]
[372518749,1752669057111,-500.0,0.00021917,2]
[372518752,1752669057121,-582.82,0.00021917,2]
[372518754,1752669057130,-460.0,0.00021917,2]
[372518755,1752669057140,-150.0,0.00021917,2]
[372518757,1752669057149,-2916.59,0.00021917,2]
[372518760,1752669057159,-500.0,0.00021917,2]
[372518762,1752669057168,-460.0,0.00021917,2]
[372518764,1752669057178,-649.78,0.00021917,2]
[372518766,1752669057187,-460.0,0.00021917,2]
[372518767,1752669057197,-460.0,0.00021917,2]
[372518769,1752669057211,-1829.24,0.00021917,2]
[372518771,1752669057221,-721.74,0.00021917,2]
[372518773,1752669057231,-460.0,0.00021917,2]
[372518775,1752669057241,-460.0,0.00021917,2]
[372518777,1752669057251,-460.0,0.00021917,2]
[372518779,1752669057261,-460.0,0.00021917,2]
[372518781,1752669057271,-460.0,0.00021917,2]
[372518783,1752669057282,-1463.77,0.00021917,2]
[372518785,1752669057291,-500.0,0.00021917,2]
[372518787,1752669057302,-5352.93,0.00021917,2]
[372518789,1752669057311,-460.0,0.00021917,2]
[372518791,1752669057321,-1437.23,0.00021917,2]
[372518793,1752669057330,-711.53,0.00021917,2]
[372518795,1752669057340,-460.0,0.00021917,2]
[372518797,1752669057349,-1413.51,0.00021917,2]
[372518799,1752669057358,-460.0,0.00021917,2]
[372518801,1752669057368,-500.0,0.00021917,2]
[372518803,1752669057377,-9157.14,0.00021917,2]
[372518805,1752669057387,-493.21432492,0.00021917,2]
[372518807,1752669057396,-460.0,0.00021917,2]
[372518809,1752669057405,-4745.61,0.00021917,2]
[372518811,1752669057415,-546.85,0.00021917,2]
[372518813,1752669057424,-460.0,0.00021917,2]
[372518815,1752669057434,-498.12,0.00021917,2]
[372518818,1752669057443,-460.0,0.00021917,2]
[372518819,1752669057455,-460.0,0.00021917,2]
[372518822,1752669057465,-460.0,0.00021917,2]
[372518823,1752669057475,-460.0,0.00021917,2]
[372518826,1752669057484,-460.0,0.00021917,2]
[372518828,1752669057494,-2617.53,0.00021917,2]
[372518829,1752669057503,-2662.58,0.00021917,2]
[372518831,1752669057512,-460.0,0.00021917,2]
[372518834,1752669057522,-460.0,0.00021917,2]
[372518835,1752669057531,-460.0,0.00021917,2]
[372518837,1752669057541,-678.94,0.00021917,2]
[372518840,1752669057555,-5755.67,0.00021917,2]
[372518841,1752669057564,-582.15,0.00021917,2]
[372518844,1752669057578,-460.0,0.00021917,2]
[372518846,1752669057588,-460.75993397,0.00021917,7]
[372518848,1752669057597,-460.0,0.00021917,2]
[372518850,1752669057607,-1926.02,0.00021917,2]
[372518852,1752669057616,-460.0,0.00021917,2]
[372518854,1752669057626,-460.0,0.00021917,2]
[372518856,1752669057636,-460.0,0.00021917,2]
[372518858,1752669057645,-460.0,0.00021917,2]
[372518860,1752669057655,-460.0,0.00021917,2]
[372518862,1752669057664,-460.0,0.00021917,2]
[372518864,1752669057674,-460.0,0.00021917,2]
[372518866,1752669057683,-167.69222795,0.00021917,2]
[372518868,1752669057693,-1167.72,0.00021917,2]
[372518870,1752669057705,-460.0,0.00021917,2]
[372518871,1752669057715,-732.22,0.00021917,2]
[372518872,1752669057725,-460.0,0.00021917,2]
[372518873,1752669057735,-500.0,0.00021917,2]
[372518874,1752669057744,-1916.694268,0.00021917,2]
[372518875,1752669057753,-500.0,0.00021917,2]
[372518876,1752669057763,-460.0,0.00021917,2]
[372518877,1752669057772,-460.0,0.00021917,2]
[372518879,1752669057782,-704.56,0.00021917,2]
[372518881,1752669057791,-1916.694268,0.00021917,2]
[372518883,1752669057801,-509.0963141,0.00021917,2]
[372518885,1752669057810,-1494.66,0.00021917,2]
[372518887,1752669057819,-460.0,0.00021917,2]
[372518889,1752669057829,-1916.694268,0.00021917,2]
[372518891,1752669057838,-1916.694268,0.00021917,2]
[372518893,1752669057848,-1916.694268,0.00021917,2]
[372518895,1752669057857,-1916.694268,0.00021917,2]
[372518897,1752669057867,-437.61655254,0.00021917,2]
[372518899,1752669057876,-929.27,0.00021917,2]
[372518901,1752669057886,-1916.694268,0.00021917,2]
[372518903,1752669057895,-1916.694268,0.00021917,2]
[372518905,1752669057905,-460.0,0.00021917,2]
[372518907,1752669057915,-460.0,0.00021917,2]
[372518909,1752669057924,-460.0,0.00021917,2]
[372518911,1752669057934,-1916.694268,0.00021917,2]
[372518913,1752669057943,-1183.1,0.00021917,2]
[372518915,1752669057953,-1916.694268,0.00021917,2]
[372518917,1752669057963,-1916.694268,0.00021917,2]
[372518919,1752669057972,-1916.694268,0.00021917,2]
[372518921,1752669057981,-1525.61,0.00021917,2]
[372518923,1752669057991,-1916.694268,0.00021917,2]
[372518925,1752669058000,-1916.694268,0.00021917,2]
[372518927,1752669058010,-10221.79,0.00021917,2]
[372518929,1752669058019,-1026.83,0.00021917,2]
[372518931,1752669058029,-1916.694268,0.00021917,2]
[372518933,1752669058039,-460.0,0.00021917,2]
[372518935,1752669058048,-1916.694258,0.00021917,2]
[372518937,1752669058058,-460.0,0.00021917,2]
[372518939,1752669058067,-460.0,0.00021917,2]
[372518941,1752669058077,-2774.58,0.00021917,2]
[372518943,1752669058088,-460.0,0.00021917,2]
[372518945,1752669058097,-460.0,0.00021917,2]
[372518947,1752669058107,-1029.05,0.00021917,2]
[372518949,1752669058116,-4578.26,0.00021917,2]
[372518951,1752669058126,-460.0,0.00021917,2]
[372518953,1752669058135,-1034.96,0.00021917,2]
[372518956,1752669058145,-873.11,0.00021917,2]
[372518957,1752669058155,-460.0,0.00021917,2]
[372518960,1752669058165,-460.0,0.00021917,2]
[372518962,1752669058174,-460.0,0.00021917,2]
[372518963,1752669058183,-460.0,0.00021917,2]
[372518965,1752669058193,-460.0,0.00021917,2]
[372518967,1752669058205,-462.17036318,0.00021917,2]